Cogmind - Beta 10 @@@ ROGUE MODE // 2020.09.19 @ 23:34:17 Player: DragoX Result: Destroyed by S-10 Pest with Light Assault Rifle Performance ------------- Evolutions (0) 0 Regions Visited (1) 200 Robots Destroyed (13) 65 Value Destroyed (363) 363 Prototype IDs (2) 40 Alien Tech Used (0) 0 Bonus (0) 0 TOTAL SCORE: 668 Bonus ------- None Cogmind --------- Core Integrity 0/250 Matter 15/300 Energy 100/100 System Corruption 2% Temperature Cool (0) Movement Core (600) Ox11 Location -10/Materials Parts ------- > --- POWER (1) -------- (None) > --- PROPULSION (2) --- (None) > --- UTILITY (2) ------ High-capacity Storage Unit Targeting Computer > --- WEAPON (2) ------- Hammer > --- INVENTORY (12) --- Ion Engine Light Ion Engine Large Storage Unit Salvage Targeting Computer Salvage Targeting Computer Medium Armor Plating Medium Armor Plating Autogun Autogun Autogun Light Cannon Datajack Peak State ------------ > --- POWER ------------ Light Nuclear Core > --- PROPULSION ------- Aluminum Leg Aluminum Leg > --- UTILITY ---------- High-capacity Storage Unit Targeting Computer > --- WEAPON ----------- Autogun Autogun > --- INVENTORY -------- Ion Engine Ion Engine Large Storage Unit Salvage Targeting Computer Salvage Targeting Computer Medium Armor Plating Medium Armor Plating Autogun Autogun Light Cannon Datajack [Rating: 12] Favorites ----------- Power Light Ion Engine Engine Light Ion Engine Power Core Light Nuclear Core Propulsion Aluminum Leg Leg Aluminum Leg Utility Targeting Computer Storage High-capacity Storage Unit Processor Targeting Computer Weapon Autogun Ballistic Gun Autogun Ballistic Cannon Light Cannon Special Weapon Mining Laser Impact Weapon Hammer Build | -11 -10 ------- Run | Scr Mat Slots Evolved . | . . Power . | . . Propulsion . | . . Utility . | . . Weapon . | . . Parts Attached 22 | 6 16 Power 4 | 1 3 Engine 3 | 1 2 Core 1 | . 1 Reactor . | . . Propulsion 4 | 2 2 Treads . | . . Leg 4 | 2 2 Wheel . | . . Hover . | . . Flight . | . . Utility 4 | 1 3 Device . | . . Storage 3 | 1 2 Processor 1 | . 1 Hackware . | . . Protection . | . . Artifact . | . . Weapon 10 | 2 8 Energy Gun . | . . Energy Cannon . | . . Ballistic Gun 7 | 2 5 Ballistic Cannon 1 | . 1 Launcher . | . . Special Weapon 1 | . 1 Impact Weapon 1 | . 1 Slashing Weapon . | . . Piercing Weapon . | . . Special Melee Weapon . | . . Unidentified Prototypes . | . . Parts Lost 5 | . 5 Power 1 | . 1 Propulsion 2 | . 2 Utility . | . . Weapon 2 | . 2 Highest Loss Streak 5 | . 5 Average Slot Usage (%) 98 | . 98 Engine 8 | . 8 Core 4 | . 4 Leg 27 | . 27 Storage 14 | . 14 Processor 13 | . 13 Ballistic Gun 24 | . 24 Ballistic Cannon 1 | . 1 Naked Turns . | . . Heaviest Build 43 | 10 43 Greatest Support 20 | 20 20 Greatest Overweight (x) 4 | 3 4 Average Overweight (x) 1 | . 1 Largest Inventory Capacity 12 | 6 12 Average Capacity 10 | 5 10 Most Carried 12 | 4 12 Average Carried 9 | 1 9 Final Capacity 12 | 6 12 Final Carried 12 | 1 12 Class Distribution -------------------- 100% | Mutant Dominant Class ---------------- Mutant | -10/Materials Resources | -11 -10 ----------- Run | Scr Mat Matter Collected 333 | 200 133 Remotely . | . . Salvage Created 365 | . 365 Parts 26 | . 26 Haulers Intercepted . | . . Recyclers Shooed . | . . Parts Field Recycled . | . . Retrieved Matter . | . . Parts Self-Destructed . | . . Prevented . | . . Kills | -11 -10 ------- Run | Scr Mat Combat Hostiles Destroyed 11 | . 11 Melee 1 | . 1 Guns 8 | . 8 Cannons 2 | . 2 Classes Destroyed 3 | . 3 Watcher 2 | . 2 Swarmer 4 | . 4 Grunt 7 | . 7 Best Kill Streak 2 | . 2 Combat Bots Only 2 | . 2 Max Kills in Single Turn 1 | . 1 Gunslinging . | . . Exploded . | . . Melee 1 | . 1 Uniques/NPCs Destroyed . | . . Combat | -11 -10 -------- Run | Scr Mat Damage Taken 958 | . 958 Core 255 | . 255 Absorbed by Shields . | . . Core Remaining (%) 100 | 100 . Volleys Fired 40 | . 40 Largest 2 | . 2 Hottest 123 | . 123 Shots Fired 77 | . 77 Gun 60 | . 60 Cannon 9 | . 9 Launcher . | . . Special 8 | . 8 Kinetic 69 | . 69 Thermal 8 | . 8 Explosive . | . . Electromagnetic . | . . Robot Hit Streak 8 | . 8 Robot Miss Streak 3 | . 3 Penetration Max . | . . Secondary Targets . | . . Shots Hit Robots 43 | . 43 Core Hits 16 | . 16 Critical Hits . | . . Critical Kills . | . . Critical Parts Destroyed . | . . Melee Attacks 7 | . 7 Impact 7 | . 7 Slashing . | . . Piercing . | . . Sneak Attacks . | . . Combat Hostiles . | . . Follow-up Attacks . | . . Damage Inflicted 954 | . 954 Guns 427 | . 427 Cannons 120 | . 120 Explosions 309 | . 309 Melee 18 | . 18 Ramming 32 | . 32 Kinetic 547 | . 547 Thermal 357 | . 357 Explosive . | . . Electromagnetic . | . . Impact 18 | . 18 Slashing . | . . Piercing . | . . Highest Corruption 2 | . 2 Average Corruption 2 | . 2 Corruption Purged . | . . Effects 2 | . 2 Message Errors 1 | . 1 Heat Flow Errors 1 | . 1 Overload Shots . | . . Overflow Damage 120 | . 120 Projectiles 5 | . 5 Explosions 115 | . 115 Melee . | . . Knockbacks 2 | . 2 Impact . | . . Kinetic 2 | . 2 Secondary . | . . Self-Inflicted Damage 81 | . 81 Shots 1 | . 1 Rammed 7 | . 7 Targets Rammed 13 | . 13 Kicked 6 | . 6 Crushed . | . . Highest Temperature 120 | . 120 Average Temperature 26 | . 26 Received Heat Transfer 129 | . 129 Siege Activations . | . . Robots Corrupted . | . . Combat Hostiles . | . . Parts Fried . | . . Impact Corruptions . | . . Robots Melted . | . . Combat Hostiles . | . . Parts Melted . | . . Heat Transferred 300 | . 300 Parts Sabotaged . | . . Parts Stolen . | . . Parts Stripped . | . . Power Chain Reactions . | . . Missiles Intercepted . | . . Alert | -11 -10 ------- Run | Scr Mat Peak Influence 125 | . 125 Initial . | . . Average 56 | . 59 Maximum Alert Level . | . . Low Security (%) 100 | 100 100 Level 1 . | . . Level 2 . | . . Level 3 . | . . Level 4 . | . . Level 5 . | . . High Security . | . . Max Security . | . . Squads Dispatched 3 | . 3 Investigation 3 | . 3 Extermination . | . . Reinforcement . | . . Assault . | . . Garrison . | . . Intercept . | . . Construction Impeded . | . . Haulers Reinforced . | . . Stealth | -11 -10 --------- Run | Scr Mat Distress Signals 1 | . 1 Communications Jammed . | . . Distress Signals . | . . Times Spotted 23 | . 23 Peak Tracking Total 4 | . 4 Tactical Retreats 2 | . 2 Traps | -11 -10 ------- Run | Scr Mat Traps Triggered 1 | . 1 Indirectly . | . . Trap Hack Attempts . | . . Triggered . | . . Disarmed . | . . Reprogrammed . | . . Reused . | . . Traps Extracted . | . . Installed . | . . Triggered . | . . Machines | -11 -10 ---------- Run | Scr Mat Machines Disabled 4 | . 4 Max in Single Turn 2 | . 2 Machines Sabotaged . | . . Garrisons Compromised . | . . Overloaded Fab Kills . | . . Fab Network Shutdowns . | . . Hacking | -11 -10 --------- Run | Scr Mat Machines Accessed 3 | . 3 Terminals 3 | . 3 Fabricators . | . . Repair Stations . | . . Recycling Units . | . . Scanalyzers . | . . Garrison Access . | . . Total Hacks 14 | . 14 Successful 7 | . 7 Failed 7 | . 7 Catastrophic 2 | . 2 Database Lockouts . | . . Manual 9 | . 9 Terminals 14 | . 14 Fabricators . | . . Repair Stations . | . . Recycling Units . | . . Scanalyzers . | . . Garrison Access . | . . Terminal Hacks 6 | . 6 Prototype ID Bank 1 | . 1 Alert Level 2 | . 2 Unreport Threat 1 | . 1 Dispatch Records 1 | . 1 Patrol Status 1 | . 1 Fabricator Hacks . | . . Repair Station Hacks . | . . Recycling Unit Hacks . | . . Scanalyzer . | . . Garrison Access Hacks . | . . Unauthorized Hacks 1 | . 1 Terminals 1 | . 1 Botnet 1 | . 1 Fabricators . | . . Repair Stations . | . . Recycling Units . | . . Scanalyzers . | . . Garrison Access . | . . Data Cores Recovered . | . . Used . | . . Hacking Detections 3 | . 3 Full Trace Events 3 | . 3 Feedback Events . | . . Feedback Blocked . | . . Robot Schematics Acquired . | . . Robots Built . | . . Matter . | . . Time . | . . Total Robot Build Rating . | . . Part Schematics Acquired . | . . Parts Built . | . . Matter . | . . Time . | . . Total Part Build Rating . | . . Parts Repaired . | . . Time . | . . Parts Recycled . | . . Recycled Matter . | . . Retrieved Matter . | . . Retrieved Components . | . . Parts Scanalyzed . | . . Part Schematics Acquired . | . . Parts Damaged . | . . Bothacking | -11 -10 ------------ Run | Scr Mat Used RIF Installer . | . . Robots Hacked . | . . Non-combat . | . . Combat . | . . Robot Hacks Applied . | . . Relay Couplers Released . | . . Robots Rewired . | . . Allies Hacked . | . . Hacks Repelled . | . . Allies | -11 -10 -------- Run | Scr Mat Total Allies . | . . Largest Group . | . . Highest-Rated Group . | . . Highest-Rated Ally . | . . Total Orders . | . . Ally Attacks . | . . Total Damage . | . . Kills . | . . Allies Corrupted . | . . Allies Melted . | . . Intel | -11 -10 ------- Run | Scr Mat Robot Analysis Total . | . . Derelict Logs Recovered . | . . Drone Launches . | . . Drone Recoveries . | . . Exploration | -11 -10 ------------- Run | Scr Mat Turns Passed 1114 | 53 1061 Spaces Moved 395 | 35 360 Core 19 | 19 . Treads . | . . Legs 376 | 16 360 Wheels . | . . Hover . | . . Flight . | . . Fastest Speed 50 | 50 120 Average Speed 154 | 116 158 Slowest Speed 240 | 200 240 Overloaded Moves . | . . Propulsion Burnouts . | . . Robots Hopped . | . . Cave-ins Triggered . | . . Exploration Rate (%) 29 | 3 55 Regions Visited 1 Branch Regions . Pre-discovered Areas . | . . Known Exits Taken . | . . Unknown Exits Taken 1 | 1 . Scrap Searched . | . . Spaces Dug 2 | . 2 Terrain Destroyed 26 | . 26 Melee . | . . Projectile 3 | . 3 AOE 23 | . 23 Terrain Rammed . | . . Walls Destroyed . | . . Machines Disabled . | . . Actions | -11 -10 --------- Run | Scr Mat Total 793 | 47 746 Wait 283 | . 283 Move 394 | 34 360 Hop . | . . Pick Up 25 | 7 18 Fast Attach 2 | . 2 Attach 10 | 6 4 Detach . | . . Swap 10 | . 10 Drop 9 | . 9 Fire 40 | . 40 Melee 7 | . 7 Ram . | . . Kick 13 | . 13 Crush . | . . Escape Stasis . | . . Rewire . | . . Trap . | . . Miscellaneous . | . . Route ------- -11/Scrapyard -10/Materials (discovered 2 exits: [*Mat] / [*Min]) History --------- Turn | Location | Event 10 | -11/Scrapyard | Discovered new exit (range 15) 54 | -11/Scrapyard | Entered Materials 218 | -10/Materials | Discovered new exit (range 4) 310 | -10/Materials | Build established: Mutant 873 | -10/Materials | Discovered new exit (range 9) 950 | -10/Materials | Core integrity fell below 50% 1069 | -10/Materials | Core integrity fell below 20% 1115 | -10/Materials | Destroyed by S-10 Pest with Light Assault Rifle Last Messages --------------- 01016_ K-01 Serf collects debris. 01021_ Dropped Aluminum Leg. 01022_ Acquired Mining Laser. 01025_ K-01 Serf collects debris. 01044_ U-05 Engineer builds a Wall. 01065_ S-10 Pest destroyed. 01074_ Destroyed Flight Unit. 01086_ Mining Laser destroyed. 01088_ Critical hit. 01088_ Aluminum Leg destroyed. 01090_ U-05 Engineer lays Concrete. 01091_ Acquired Hammer. 01092_ U-05 Engineer lays Concrete. 01095_ U-05 Engineer builds a Wall. 01103_ Aluminum Leg destroyed. 01107_ R=S7GOATMH|NOIG E7MBPY 9: SBLA%P::CRWUS 01108_ Ion Engine destroyed. 01110_ Critical hit. 01110_ Autogun destroyed. 01110_ R-06 Scavenger collects Lgt. Assault Rifle. Map ----- +----------------------------------------------------+ | | | | | | | ?????????????????????????????????????????????????? | | ?????????????????????????????????????????????????? | | ?????????????????????????????????????????????????? | | ?????????????????????????????????????????????????? | | ?????????????????????????????????????????????????? | | ?????????????????????????????????????????????????? | | ?????????????????????????????????????????????????? | | ?????????????????????????????????????????????????? | | ?????????????????????????????????????????????????? | | ?????????????????????????????????????????????????? | | ?????????????????????????????????????????????????? | | ?????????????????????????????????????????????????? | | ?????????????????????????????????????????????????? | | ?????????????????????????????????????????????????? | | ?????????????????????????????????????????????????? | | ?????????????????????????????????????????????????? | | ?????????????????????????????????????????????????? | | ?????????????????????????????????????????????????? | | ?????????????????????????????????????????????????? | | ?????????????????????##??????????????????????????? | | ???????????????##############????????????????????? | | ???????????????# s * #????????????????????? | | ???????????????# """ """s@ #????????????????????? | | ???????????????+ """ """ #????????????????????? | | ?????????????????""" """ #????????????????????? | | ???????????????# u r ###??????????????????? | | ???????????????##############"##?????????????????? | | ??????????????????????# #?????????????????? | | ??????????????????????# |!!#?????????????????? | | ??????????????????????# |!!#?????????????????? | | ??????????????????????# = !!#?????????????????? | | ??????????????????????# #?????????????????? | | ??????????????????????# #?????????????????? | | #####?????????######### #?????????????????? | | [#?????????#""!"|""# #?????????????????? | | #######???# "!"|" #=[* #?????????#???????? | | # ##### ##+#########+##! #??????? | | # %%*[* #??????? | | + %< #??????? | | # #??????? | | # ##### ##+############ #??????? | | ## ##??########### ??????????????#???????? | | ## #???# #? ?????????????????????? | | ###### #???# #? ????????????????????? | | ###### #???# ! #?? ???????????????????? | | #???# #??? ??????????????????? | | #######+###### #??? ?????????????????? | +----------------------------------------------------+ Best States ------------- Heat Dissipation 25 Energy Generation 14 Energy Capacity 250 Matter Stores 240 Matter Capacity 300 Sight Range 16 Terrain Scan Density 10 Evasion (%) 50 Targeting Accuracy 5 Item Schematics ----------------- None Robot Schematics ------------------ None Fabricated ------------ Nothing Alien Tech Used ----------------- None Achievements -------------- Everything Is Under Control Oops root@ Challenges ------------ None Game ------ Seed GhostRocketPrototype Manual? 0 Play Time 00:15:01 Cumulative 1.1 hours Start 2020.09.19 @ 23:19:55 End 2020.09.19 @ 23:34:17 Sessions 1 Manual Loads 0 Difficulty Rogue Special Mode None Game No. 4 Rogue 4 Adventurer 0 Explorer 0 Win Type - Total 0 Types 0/0/0/0/0/0/0/0/0 Lore% 0 Gallery% 2 Achievement% 4 Wizard Run 0 Options --------- ASCII 0 Keyboard 0 Movement Mouse Keybinds 0 Fullscreen 1 Font 18/Cog Map View 76x50 Tactical HUD 1 Map Filters NONE Filters NONE Steam 0 RUN: 1c0b52d1-2d67-4038-a1b2-b928caa3b84a